bitfinex/quotes_ETHUSD_20250602
["timestamp","ask_amount","ask_price","bid_price","bid_amount"]
[1748853733428,0.04126715,2504.2,2503.9,2.39625942]
[1748853733571,0.04126715,2504.2,2503.7,2.39645324]
[1748853733902,0.04126715,2504.2,2503.8,2.39628703]
[1748853734272,0.87099336,2504.3,2503.9,2.3962484]
[1748853734496,0.87099336,2504.3,2503.9,0.82]
[1748853734896,3.26687869,2504.3,2503.7,2.39641224]
[1748853735407,3.26687869,2504.3,2503.7,2.39639802]
[1748853735726,0.87099336,2504.3,2503.7,2.39639802]
[1748853735937,7.2981487,2504.1,2503.5,2.39658682]
[1748853736093,0.04126715,2504.0,2503.5,6.56358682]
[1748853736291,0.82286715,2504.0,2503.5,6.56358682]
[1748853736490,0.82286715,2504.0,2503.5,4.167]
[1748853736717,0.04126715,2504.0,2503.6,2.39650887]
[1748853736890,0.04126715,2504.0,2503.7,2.3963852]
[1748853737690,0.04126715,2504.0,2503.5,6.56362281]
[1748853737890,0.04126715,2504.0,2503.5,4.167]
[1748853738235,0.04126715,2504.0,2503.6,2.39649071]
[1748853738732,0.04126715,2504.0,2503.6,2.3964938]
[1748853739631,3.60755308,2504.0,2503.5,4.166]
[1748853740190,1.21133867,2504.0,2503.5,6.56259592]
[1748853740790,1.21133867,2504.0,2503.5,6.5625944]
[1748853740990,1.21133867,2504.0,2503.5,4.166]
[1748853741228,1.21133867,2504.0,2503.6,2.39654469]
[1748853741432,1.21133867,2504.0,2503.5,6.56257358]
[1748853741614,1.21133867,2504.0,2503.7,2.3964048]
[1748853741938,1.9652179,2504.2,2503.6,2.39652031]
[1748853742138,0.82286715,2504.2,2503.9,2.39620563]
[1748853742435,0.04126715,2504.2,2503.8,0.8033]
[1748853742641,0.39856548,2504.3,2503.9,2.39626183]
[1748853742846,0.04126715,2504.3,2504.0,2.39616274]
[1748853743008,0.04126715,2504.3,2503.9,2.3962124]
[1748853743931,0.04126715,2504.3,2504.0,2.39609983]
[1748853744309,0.04126715,2504.3,2503.9,2.39621616]
[1748853744627,0.04126715,2504.3,2503.5,2.3965894]
[1748853744628,0.7852,2504.0,2503.5,2.3965894]
[1748853744833,0.82646715,2504.0,2503.4,4.9182]
[1748853745010,0.82646715,2504.0,2503.6,2.39648336]
[1748853745408,3.22266393,2504.0,2503.5,2.39664469]
[1748853745748,7.2981487,2503.8,2503.4,3.14889632]
[1748853746053,8.3915102,2503.8,2503.4,2.39669632]
[1748853746347,8.35024305,2503.8,2503.4,6.56269632]
[1748853746844,7.2981487,2503.8,2503.4,6.5626975]
[1748853747065,7.2981487,2503.8,2503.6,2.39654547]
[1748853747281,0.7852,2504.0,2503.6,2.39647732]
[1748853747556,0.82646715,2504.0,2503.5,6.56263257]
[1748853747743,0.82646715,2504.0,2503.6,0.7851]
[1748853747934,0.81246159,2503.9,2503.6,2.39649025]
[1748853748318,0.81246159,2503.9,2503.5,4.166]
[1748853748519,7.33941585,2503.8,2503.4,2.39671698]
[1748853748757,7.33941585,2503.8,2503.4,6.56171698]
[1748853748951,0.04126715,2503.8,2503.4,6.56165433]
[1748853749577,0.04126715,2503.8,2503.4,4.165]
[1748853749718,0.04126715,2503.9,2503.4,4.165]
[1748853749923,1.09334014,2503.9,2503.2,3.18071442]
[1748853750128,3.4896101,2503.9,2503.4,2.39673784]
[1748853750529,1.09334014,2503.9,2503.4,2.39673784]
[1748853751261,3.50994783,2503.8,2503.4,2.39673784]
[1748853752264,3.50994783,2503.8,2503.4,4.165]
[1748853752964,3.50994783,2503.8,2503.4,6.56172823]
[1748853753193,3.50994783,2503.8,2503.5,2.39662816]
[1748853753472,3.50994783,2503.8,2503.6,2.39651593]
[1748853753659,4.34581498,2504.2,2503.8,2.39626195]
[1748853753961,3.55121498,2504.2,2503.8,4.165]
[1748853754654,5.94719688,2504.2,2503.8,4.165]
[1748853755685,3.50994783,2504.0,2503.4,0.8116]
[1748853755841,3.50994783,2504.0,2503.6,2.39654814]
[1748853760649,3.55121498,2504.2,2503.5,4.165]
[1748853760895,3.55121498,2504.2,2503.8,2.39634774]
[1748853761187,3.50994783,2504.2,2503.9,4.165]
[1748853761389,0.40477568,2504.3,2504.0,2.39607101]
[1748853761556,8.48985164,2504.4,2504.0,2.39615778]
[1748853761758,3.99979947,2504.4,2503.9,6.56122396]
[1748853761966,4.39842093,2504.4,2503.9,6.56122396]
[1748853762679,6.79421421,2504.4,2503.9,6.56122396]
[1748853762887,3.50994783,2504.0,2503.9,4.164]
[1748853763679,3.50994783,2504.2,2503.9,4.164]
[1748853764195,2.43734095,2504.1,2503.9,4.164]
[1748853764378,3.50994783,2504.0,2503.6,0.758]
[1748853764592,3.50994783,2504.0,2503.5,3.50661776]
[1748853764789,3.50994783,2503.8,2503.5,5.274]
[1748853764982,3.55121498,2503.8,2503.5,5.274]
[1748853765977,3.55121498,2503.8,2503.5,1.11]
[1748853766179,3.50994783,2503.6,2503.5,1.11]
[1748853766999,3.98346148,2503.8,2503.5,3.50663648]
[1748853767196,4.02472863,2503.8,2503.5,3.50663648]
[1748853767393,4.02472863,2503.8,2503.5,1.11]
[1748853767594,3.50994783,2503.6,2503.5,1.11]
[1748853768076,3.50994783,2503.8,2503.5,3.50657901]
[1748853768276,3.50994783,2503.8,2503.5,1.11]
[1748853768686,3.55121498,2503.8,2503.5,1.11]
[1748853769006,3.55121498,2503.8,2503.5,3.50664211]
[1748853769209,0.8067,2504.1,2503.9,2.39618986]
[1748853769507,0.84796715,2504.1,2503.8,2.39630837]
[1748853769710,0.84796715,2504.1,2503.7,6.56039791]
[1748853770011,3.50994783,2504.0,2503.7,6.56039791]
[1748853770383,3.50994783,2504.0,2503.7,4.164]
[1748853770582,3.50994783,2504.0,2503.7,6.56045196]
[1748853771572,3.50994783,2504.0,2503.7,4.164]
[1748853772521,5.90611747,2504.0,2503.5,3.5066085]
[1748853772725,0.04126715,2503.9,2503.6,4.164]
[1748853773223,0.8067,2504.1,2503.8,2.39635753]
[1748853773522,3.50994783,2504.2,2503.8,2.3963146]
[1748853773726,3.55121498,2504.2,2503.6,4.164]
[1748853773929,3.55121498,2504.2,2503.7,2.39645324]
[1748853774104,3.55121498,2504.2,2503.8,2.39633937]
[1748853774647,3.55121498,2504.2,2503.8,3.19221293]
[1748853775229,4.35011498,2504.3,2503.8,0.7959]
[1748853775402,3.50994783,2504.1,2503.7,2.39638677]
[1748853775749,3.50994783,2504.1,2503.7,3.47962529]
[1748853778908,0.04126715,2504.0,2503.5,1.11]
[1748853779108,5.90609114,2504.1,2503.4,3.14852977]
[1748853779335,5.90609114,2504.1,2503.6,7.66752926]
[1748853780017,3.50994783,2504.1,2503.6,7.66752926]
[1748853780211,5.90602658,2504.1,2503.6,7.66752926]
[1748853782244,3.50994783,2504.1,2503.6,7.66749465]
[1748853782545,5.90603813,2504.1,2503.6,7.66749465]
[1748853782743,5.90603813,2504.1,2503.6,5.271]
[1748853783061,5.90603813,2504.1,2503.7,4.163]
[1748853783207,5.94730528,2504.1,2503.7,4.163]
[1748853783407,2.39618333,2504.0,2503.7,4.163]
[1748853783604,2.39618333,2504.0,2503.6,1.108]
[1748853783605,4.32811498,2503.9,2503.2,3.22818756]
[1748853783849,5.90640541,2503.7,2503.3,1.108]
[1748853784047,5.90679074,2503.3,2503.1,0.01]
[1748853784254,0.85206715,2503.2,2503.1,0.01]
[1748853784848,0.8108,2503.2,2503.1,0.01]
[1748853786837,7.39356641,2503.2,2503.1,0.01]
[1748853787226,4.32074783,2503.2,2503.1,0.01]
[1748853787421,6.71767975,2503.2,2503.1,0.01]
[1748853788034,5.90687975,2503.2,2503.1,0.01]
[1748853788234,6.69257975,2503.2,2503.1,0.01]
[1748853788439,6.7338469,2503.2,2503.1,0.01]
[1748853788641,8.06321608,2503.2,2503.1,0.01]
[1748853789360,16.06321608,2503.2,2503.1,0.01]
[1748853789652,16.02194893,2503.2,2503.1,0.01]
[1748853791656,2.11506918,2503.2,2503.1,0.01]
[1748853791827,4.29564783,2503.2,2503.1,0.01]
[1748853792036,6.7338469,2503.2,2503.1,0.01]
[1748853792236,14.7338469,2503.2,2503.1,0.01]
[1748853792443,14.69257975,2503.2,2503.1,0.01]
[1748853792651,16.40152232,2503.2,2503.1,0.01]
[1748853792967,21.11452232,2503.2,2503.1,0.01]
[1748853793874,20.56452232,2503.2,2503.1,0.01]
[1748853794047,16.40152232,2503.2,2503.1,0.01]
[1748853795367,20.74804418,2503.2,2503.1,0.01]
[1748853797972,0.8191,2502.5,2502.1,0.01]
[1748853798160,2.39784679,2502.3,2502.1,0.01]
[1748853798334,0.04126715,2502.4,2502.1,0.01]
[1748853798667,1.59242519,2504.6,2502.3,0.7731]
[1748853798668,5.93310611,2503.1,2502.3,0.7731]
[1748853798836,2.39729234,2502.9,2502.3,0.7731]
[1748853799031,2.43855949,2502.9,2502.3,0.7731]
[1748853799237,2.43855949,2502.9,2502.3,3.17085498]
[1748853799681,0.39218584,2502.9,2502.3,3.1708148]
[1748853799833,2.4383957,2503.0,2502.4,2.71469968]
[1748853800384,0.04126715,2503.0,2502.5,2.39759494]
[1748853800888,2.43841919,2503.0,2502.4,2.71473485]
[1748853801437,0.04126715,2503.0,2502.5,0.7613]
[1748853801757,2.39684365,2503.3,2502.7,2.3973534]
[1748853801957,2.4381108,2503.3,2502.7,2.3973534]
[1748853802136,2.39695278,2503.2,2502.6,2.39746029]
[1748853802335,2.39695278,2503.2,2502.6,3.36939331]
[1748853802573,0.04126715,2503.1,2502.6,0.97193302]
[1748853802750,2.39710108,2503.1,2502.5,3.15884942]
[1748853803075,2.39710108,2503.1,2502.5,0.7613]
[1748853803076,3.21800392,2502.9,2502.5,0.7613]
[1748853803238,0.04126715,2502.8,2502.5,0.7613]
[1748853803860,2.39750659,2502.6,2502.5,0.7613]
[1748853804062,0.04126715,2502.8,2502.3,0.7607]
[1748853804344,0.04126715,2502.8,2502.3,3.15841625]
[1748853804546,0.04126715,2502.8,2502.3,2.39771625]
[1748853805354,2.43858762,2502.8,2502.3,2.39771625]
[1748853805555,2.39741862,2502.7,2502.1,2.40791367]
[1748853805957,0.04126715,2502.6,2502.1,2.40795598]
[1748853806155,2.43871697,2502.7,2502.1,2.40795598]
[1748853806364,2.39751316,2502.6,2502.1,2.40795598]
[1748853806748,2.88112422,2502.6,2502.1,2.40795598]
[1748853806948,0.04126715,2502.7,2502.1,0.01]
[1748853806949,3.21789691,2502.5,2502.1,0.01]
[1748853807159,0.04126715,2502.4,2502.1,0.01]
[1748853808468,2.43896826,2502.4,2502.1,0.01]
[1748853808783,0.04126715,2502.4,2502.1,0.01]
[1748853810810,2.39781713,2502.3,2502.1,0.01]
[1748853811108,0.28517558,2502.2,2502.1,0.01]
[1748853811884,0.04126715,2502.4,2502.1,0.01]
[1748853812405,0.04126715,2502.7,2502.2,2.39783455]
[1748853812604,2.43869542,2502.7,2502.1,3.21003843]
[1748853812805,2.39752924,2502.6,2502.1,3.21006629]
[1748853813105,2.43868855,2502.7,2502.2,2.39781278]
[1748853813325,2.12789511,2502.7,2502.3,2.39773079]
[1748853813474,2.08662796,2502.7,2502.2,0.03996328]
[1748853813676,0.04126715,2502.8,2502.3,2.39774032]
[1748853813991,2.43860279,2502.8,2502.2,2.43780646]
[1748853814192,2.39741106,2502.7,2502.2,2.43780646]
[1748853814374,2.43859765,2502.8,2502.3,2.39779265]
[1748853815113,2.43863591,2502.8,2502.2,0.03996328]
[1748853815413,2.39741536,2502.7,2502.2,2.43780391]
[1748853815837,0.04126715,2502.8,2502.2,0.03996328]
[1748853816116,2.39741286,2502.7,2502.2,2.43781266]
[1748853817237,2.39741286,2502.7,2502.2,2.39784938]
[1748853817432,0.04126715,2502.6,2502.2,2.39784938]
[1748853817814,4.914028,2502.6,2502.1,3.21004919]
[1748853818537,4.914028,2502.6,2502.1,0.8121]
[1748853819308,3.51281168,2502.4,2502.1,0.8121]
[1748853819612,3.51281168,2502.4,2502.1,0.01]
[1748853820536,0.04126715,2502.5,2502.1,0.01]
[1748853820759,0.04126715,2502.8,2502.2,0.7924]
[1748853820904,2.43864129,2502.8,2502.3,2.39778617]
[1748853821106,1.82521596,2502.8,2502.3,2.39777723]
[1748853821317,2.39741079,2502.7,2502.2,0.7924]
[1748853821642,2.39750813,2502.6,2502.2,0.7924]
[1748853821844,2.39750813,2502.6,2502.1,0.01]
[1748853821845,0.7893,2502.5,2502.1,0.01]
[1748853822177,0.04126715,2502.6,2502.1,2.40792006]
[1748853822341,2.43881219,2502.6,2502.2,0.7632]
[1748853822528,2.39769164,2502.5,2502.1,0.01]
[1748853822877,2.43895879,2502.5,2502.1,0.01]
[1748853824764,0.04126715,2502.5,2502.1,0.01]
[1748853825474,2.43890011,2502.5,2502.1,0.01]
[1748853825632,2.39770817,2502.4,2502.1,0.01]
[1748853825833,2.39769867,2502.4,2502.1,0.01]
[1748853826152,0.54932333,2502.4,2502.1,0.01]
[1748853826348,2.94707029,2502.4,2502.1,0.01]
[1748853827050,0.54932333,2502.4,2502.1,0.01]
[1748853828042,2.94708203,2502.4,2502.1,0.01]
[1748853828456,2.3977988,2502.3,2502.1,0.01]
[1748853828657,0.57987609,2502.3,2502.1,0.01]
[1748853828879,2.39788985,2502.2,2502.1,0.01]
[1748853829181,2.93645166,2502.3,2502.1,0.01]
[1748853829497,2.39788985,2502.2,2502.1,0.01]
[1748853829631,2.97772215,2502.3,2502.1,0.01]
[1748853829834,0.88882508,2502.2,2502.1,0.01]
[1748853830035,3.28671493,2502.2,2502.1,0.01]
[1748853830236,0.88882508,2502.2,2502.1,0.01]
[1748853832287,6.79952661,2502.2,2502.1,0.01]
[1748853832458,4.40163676,2502.2,2502.1,0.01]
[1748853832781,6.79952661,2502.2,2502.1,0.01]
[1748853833188,0.88882508,2502.2,2502.1,0.01]
[1748853833382,3.51281168,2502.6,2502.1,0.01]
[1748853833585,0.04126715,2502.5,2502.2,0.7887]
[1748853833879,3.51281168,2502.6,2502.2,0.7887]
[1748853833880,8.04126715,2502.6,2502.2,0.7887]
[1748853834081,8.0,2502.6,2502.2,0.7887]
[1748853834379,2.43879322,2502.6,2502.2,0.7887]
[1748853834765,2.39762674,2502.5,2502.2,0.7887]
[1748853834971,2.39770398,2502.4,2502.2,0.7887]
[1748853835356,2.43892191,2502.5,2502.2,0.7887]
[1748853836096,2.39770158,2502.4,2502.2,0.7887]
[1748853836311,2.39774403,2502.4,2502.2,0.7887]
[1748853836468,2.39777782,2502.4,2502.1,0.01]
[1748853836794,3.17429225,2502.4,2502.1,0.01]
[1748853837982,0.77651443,2502.4,2502.1,0.01]
[1748853838722,3.17424645,2502.4,2502.1,0.01]
[1748853839303,2.43890668,2502.5,2502.1,0.01]
[1748853840185,0.04126715,2502.5,2502.1,0.01]
[1748853840393,2.43886967,2502.5,2502.1,0.01]
[1748853840708,2.39760612,2502.5,2502.1,0.01]
[1748853840865,7.76492033,2502.6,2502.1,0.01]
[1748853841069,7.76492033,2502.6,2502.1,2.40797949]
[1748853841297,3.97414662,2502.5,2502.1,0.01]
[1748853841499,0.04126715,2502.4,2502.1,0.01]
[1748853841703,2.39780494,2502.3,2502.1,0.01]
[1748853841907,2.39788985,2502.2,2502.1,0.01]
[1748853842110,2.439157,2502.2,2502.1,0.01]
[1748853842413,6.78693689,2502.2,2502.1,0.01]
[1748853843271,15.61943689,2502.2,2502.1,0.01]
[1748853843500,16.12816974,2502.2,2502.1,0.01]
[1748853844606,19.64098142,2502.2,2502.1,0.01]
[1748853845242,2.3983691,2501.7,2501.6,0.66666667]
[1748853845367,8.8241,2501.6,2501.1,0.01]
[1748853845726,5.91166023,2501.2,2501.1,0.01]
[1748853846030,6.72602738,2501.2,2501.1,0.01]
[1748853846571,4.32717883,2501.2,2501.1,0.01]
[1748853846807,8.82886715,2501.5,2501.1,0.01]
[1748853847003,2.39877484,2501.3,2501.1,0.01]
[1748853847213,3.55407883,2501.2,2501.1,0.01]
[1748853848426,3.55407883,2501.4,2501.1,0.01]
[1748853848989,5.95274488,2501.4,2501.1,0.01]
[1748853849240,3.11268816,2501.3,2501.1,0.01]
[1748853849449,3.55407883,2501.2,2501.1,0.01]
[1748853849759,5.95292738,2501.2,2501.1,0.01]
[1748853850790,6.50292738,2501.2,2501.1,0.01]
[1748853850989,7.28462738,2501.2,2501.1,0.01]
[1748853851190,7.28462738,2501.2,2500.1,0.01]
[1748853851191,2.39904038,2501.0,2500.1,0.01]
[1748853851496,3.51281168,2500.4,2500.1,2.40982621]
[1748853851819,0.04126715,2500.3,2500.1,0.01]
[1748853852127,0.04126715,2500.3,2500.1,2.4098287]
[1748853852433,0.04126715,2500.5,2500.2,2.39974784]
[1748853852755,0.04126715,2500.5,2500.2,2.39975298]
[1748853852914,0.04126715,2500.5,2500.1,0.01]
[1748853852915,0.04126715,2500.5,2500.1,2.40987174]
[1748853853227,0.04126715,2500.5,2500.3,0.7648]
[1748853853430,0.04126715,2500.9,2500.8,2.39923224]
[1748853853588,0.04126715,2501.0,2500.3,0.7648]
[1748853853791,0.04126715,2501.0,2500.5,2.39949079]
[1748853854042,3.51281168,2500.9,2500.5,2.39949079]
[1748853854331,0.04126715,2500.8,2500.5,2.39949079]
[1748853854649,0.04126715,2500.8,2500.3,0.7648]
[1748853854929,4.21281168,2500.7,2500.3,3.16443986]
[1748853855134,0.04126715,2500.6,2500.3,0.7648]
[1748853855321,0.04126715,2500.6,2500.3,3.1644606]
[1748853855628,3.51281168,2500.5,2500.3,2.39964546]
[1748853856312,3.51281168,2500.5,2500.2,2.3997746]
[1748853856519,0.04126715,2500.4,2500.1,0.01]
[1748853856722,0.04126715,2500.5,2500.3,2.399639]
[1748853856915,0.42540788,2500.6,2500.1,0.01]
[1748853856916,0.46667503,2500.6,2500.1,0.01]
[1748853857115,0.04126715,2500.6,2500.3,2.39966745]
[1748853857735,0.04126715,2500.6,2500.4,2.39960378]
[1748853858040,0.04126715,2500.7,2500.4,2.39954208]
[1748853858195,0.04126715,2500.8,2500.6,2.39935749]
[1748853858394,0.9049242,2500.8,2500.6,2.39935749]
[1748853858630,0.9049242,2500.8,2500.4,3.2033902]
[1748853858805,0.9049242,2500.8,2500.4,3.20336241]
[1748853859133,0.9049242,2500.8,2500.4,0.8038]
[1748853859536,0.9049242,2500.8,2500.1,0.01]
[1748853859537,7.8692149,2500.5,2500.1,0.01]
[1748853859728,8.04126715,2500.4,2500.1,0.01]
[1748853860204,0.04126715,2500.4,2500.1,0.01]
[1748853861230,2.44093086,2500.4,2500.1,0.01]
[1748853861430,0.831,2500.3,2500.1,0.01]
[1748853861596,0.36846024,2500.2,2500.1,0.01]
[1748853861993,0.04126715,2500.2,2500.1,0.01]
[1748853862355,8.43919773,2500.2,2500.1,0.01]
[1748853862645,8.0,2500.4,2500.1,0.01]
[1748853862848,0.04126715,2500.3,2500.1,0.01]
[1748853863050,0.7765,2500.2,2500.1,0.01]
[1748853863216,16.09029963,2500.2,2500.1,0.01]
[1748853863692,11.92729963,2500.2,2500.1,0.01]
[1748853863898,15.54029963,2500.2,2500.1,0.01]
[1748853864202,16.49521976,2500.2,2500.1,0.01]
[1748853864410,18.89621976,2500.2,2500.1,0.01]
[1748853864935,18.90581976,2500.2,2500.1,0.01]
[1748853865438,18.90581976,2500.2,2499.2,0.7616]
[1748853865439,8.0,2499.8,2499.2,0.7616]
[1748853865622,0.04126715,2499.8,2499.5,2.40039483]
[1748853866028,0.04126715,2499.8,2499.4,2.40051813]
[1748853866228,0.04126715,2499.8,2499.4,2.40048787]
[1748853866432,8.1186149,2500.1,2499.3,0.04000931]
[1748853866433,0.04126715,2499.9,2499.3,0.04000931]
[1748853866861,0.04126715,2500.1,2499.8,2.40013597]
[1748853867431,0.04126715,2500.1,2499.5,0.04000258]
[1748853867432,0.04126715,2500.1,2500.0,2.4]
[1748853867632,0.04126715,2500.3,2500.1,2.39984435]
[1748853867836,0.04126715,2500.3,2500.0,2.39995423]
[1748853868135,0.04126715,2500.3,2499.7,2.40028803]
[1748853868339,0.04126715,2500.3,2499.6,3.18925363]
[1748853868340,2.39982405,2500.2,2499.6,3.18925363]
[1748853868537,1.09849811,2500.3,2499.6,3.18925363]
[1748853868538,0.04126715,2500.1,2499.8,2.40016214]
[1748853868983,0.04126715,2500.1,2499.9,2.40008182]
[1748853869379,0.04126715,2500.1,2499.8,2.40014745]
[1748853869541,0.04126715,2500.1,2499.7,2.40025526]
[1748853869964,0.7,2499.9,2499.8,2.40019201]
[1748853871174,0.44718699,2500.2,2500.0,2.3999954]
[1748853871365,0.44718699,2500.2,2499.9,2.40008564]
[1748853871565,0.44718699,2500.2,2500.0,2.39994616]
[1748853871881,0.40591984,2500.2,2500.1,2.399904]
[1748853872034,0.04126715,2500.4,2500.1,2.399904]
[1748853872239,0.04126715,2500.4,2500.3,2.39971203]
[1748853872435,0.04126715,2500.6,2500.4,2.39955023]
[1748853873438,0.04126715,2500.7,2500.4,2.39955023]
[1748853873675,0.04126715,2500.7,2500.3,2.39966491]
[1748853873852,0.04126715,2500.7,2500.4,2.39958705]
[1748853874382,0.04126715,2500.7,2500.0,0.85359386]
[1748853874546,0.04126715,2500.8,2500.5,0.8136]
[1748853874877,0.04126715,2500.8,2500.6,2.39942413]
[1748853875848,0.04126715,2500.8,2500.7,2.39932818]
[1748853876190,2.84130568,2500.9,2500.8,2.39923224]
[1748853876654,2.84130568,2500.9,2500.5,0.8136]
[1748853876848,2.84130568,2500.9,2500.7,2.39924864]
[1748853877239,2.84130568,2500.9,2500.8,2.39923224]
[1748853878566,2.84130568,2500.9,2500.7,2.39931505]
[1748853879378,2.84130568,2500.9,2500.8,2.39923224]
[1748853880375,2.84130568,2500.9,2500.7,2.39928167]
[1748853880976,2.84130568,2500.9,2500.8,2.39923224]
[1748853883181,2.84130568,2500.9,2500.8,3.65448718]
[1748853883402,8.0,2501.3,2501.1,2.39885895]
[1748853884847,8.0,2501.3,2501.1,2.39890875]
[1748853886985,0.04126715,2501.4,2501.1,2.39889931]
[1748853887484,8.04126715,2501.4,2501.0,2.39900032]
[1748853887787,10.00210127,2501.4,2501.0,2.39900032]
[1748853888095,17.28004902,2501.4,2501.0,2.39900032]
[1748853889081,17.28004902,2501.4,2501.0,2.39899182]
[1748853889290,17.28004902,2501.4,2500.9,6.56111003]
[1748853889291,3.517797,2501.1,2500.9,6.56111003]
[1748853889469,3.517797,2501.1,2500.9,2.39911003]
[1748853889848,3.87370342,2501.1,2500.8,2.39923224]
[1748853890051,3.87370342,2501.1,2500.9,2.39911961]
[1748853890292,3.87370342,2501.1,2501.0,2.39904038]
[1748853890990,3.87370342,2501.1,2500.6,0.7718]
[1748853891157,3.87370342,2501.1,2499.7,2.87732137]
[1748853891158,3.517797,2500.7,2500.5,6.56150788]
[1748853891358,3.517797,2500.9,2500.6,2.39942413]
[1748853891690,3.517797,2500.9,2500.7,2.39924483]
[1748853892404,3.517797,2500.9,2500.6,2.39939082]
[1748853892609,0.04126715,2500.8,2500.6,2.39939082]
[1748853893703,0.04126715,2500.8,2500.7,2.39932818]
[1748853893869,3.517797,2500.9,2500.7,2.39932818]
[1748853894069,3.517797,2500.9,2500.7,2.39927155]
[1748853894275,3.517797,2500.9,2500.8,2.39923224]
[1748853894478,3.99102406,2500.9,2500.8,2.39923224]
[1748853894697,0.04126715,2501.1,2500.5,0.03998842]
[1748853894899,0.04126715,2501.1,2500.4,4.9338]
[1748853894900,0.04126715,2501.3,2500.9,3.22522652]
[1748853895202,0.04126715,2501.3,2501.2,2.39884855]
[1748853895391,0.39900398,2501.5,2501.2,2.39884855]
[1748853895392,0.04126715,2501.4,2501.2,2.39884855]
[1748853895909,0.04126715,2501.4,2501.1,2.3989005]
[1748853896599,0.04126715,2501.5,2501.1,2.3989005]
[1748853896816,1.16142269,2501.5,2501.1,2.3989005]
[1748853897106,8.47588943,2501.5,2501.1,2.3989005]
[1748853897309,8.43462228,2501.5,2501.1,2.3989005]
[1748853897522,0.04126715,2501.4,2501.1,2.3989005]
[1748853898628,0.04126715,2501.4,2501.0,2.39898908]
[1748853898830,2.00490295,2501.4,2501.0,2.39898908]
[1748853899177,2.40113728,2501.4,2501.0,2.39898908]
[1748853899426,2.40113728,2501.4,2501.1,2.3989408]
[1748853899923,2.40113728,2501.4,2501.0,2.39899899]
[1748853900083,7.31446674,2501.2,2500.5,0.7888]
[1748853900408,0.04126715,2501.2,2500.6,2.39942413]
[1748853900573,0.04126715,2501.2,2500.5,0.82878699]
[1748853900574,7.31446674,2501.0,2500.5,3.18827182]
[1748853900775,7.31446674,2501.0,2500.6,2.39941687]
[1748853900776,0.04126715,2500.9,2500.6,2.39941687]
[1748853900974,0.04126715,2500.9,2500.7,2.39932428]
[1748853901206,0.85187054,2500.9,2500.7,2.39932428]
[1748853901393,0.85187054,2500.9,2500.7,2.39926541]
[1748853901575,0.04126715,2500.9,2500.8,2.39923224]
[1748853901772,0.04126715,2500.9,2500.7,2.39928091]
[1748853902782,0.04126715,2500.9,2500.8,2.39923224]
[1748853903478,0.86426715,2501.2,2501.0,2.39901527]
[1748853903698,2.00348515,2501.2,2500.7,2.39932818]
[1748853903899,0.04126715,2501.2,2500.9,2.39907617]
[1748853904735,0.04126715,2501.2,2501.0,2.39902352]
[1748853905043,0.04126715,2501.2,2501.1,2.39894446]
[1748853906140,0.04126715,2501.2,2501.0,2.39899516]
[1748853906436,0.04126715,2501.3,2501.0,2.39899516]
[1748853906607,0.60353745,2501.3,2501.0,2.3989908]
[1748853906815,7.35573389,2501.3,2501.0,2.39896901]
[1748853907023,0.04126715,2501.3,2500.6,7.37438959]
[1748853907333,0.04126715,2501.3,2501.1,2.39888735]
[1748853908153,0.04126715,2501.3,2501.2,2.39884855]
[1748853908302,0.04126715,2501.3,2501.1,2.39889693]
[1748853908639,0.04126715,2501.3,2500.6,7.374358]
[1748853908840,7.35573389,2501.3,2500.9,2.39912363]
[1748853909001,7.35573389,2501.3,2500.9,2.39904934]
[1748853909202,7.35573389,2501.3,2501.0,2.39897621]
[1748853909536,0.04126715,2501.3,2501.0,2.39902209]
[1748853909741,0.04126715,2501.3,2501.2,2.39884855]
[1748853910042,0.43750148,2501.4,2501.2,2.39884855]
[1748853910240,0.43750148,2501.4,2501.3,2.39875264]
[1748853910436,0.43750148,2501.4,2501.2,2.39877928]
[1748853910907,0.39623433,2501.4,2501.2,2.39877928]
[1748853911102,0.04126715,2501.5,2501.1,2.39890987]
[1748853911418,1.9571219,2501.5,2501.1,2.39890987]
[1748853911735,2.36287472,2501.5,2501.1,2.39890987]
[1748853912548,2.36287472,2501.5,2501.2,2.39878294]
[1748853912765,0.40575282,2501.5,2501.1,2.39894446]
[1748853912918,0.40575282,2501.5,2501.4,2.39865675]
[1748853913110,0.05126715,2501.9,2501.5,2.39848484]
[1748853913319,0.05126715,2501.9,2501.2,2.39877548]
[1748853913320,7.31446674,2501.6,2501.2,2.39877548]
[1748853913505,0.84506715,2501.5,2501.3,2.39870804]
[1748853913825,0.84506715,2501.5,2501.1,6.55991049]
[1748853913826,0.04126715,2501.5,2501.1,4.9466]
[1748853914039,0.04126715,2501.5,2501.3,2.39875264]
[1748853915513,0.04126715,2501.5,2501.4,2.39865675]
[1748853916460,0.04126715,2501.5,2501.3,2.39870953]
[1748853917038,0.04126715,2501.5,2501.4,2.39865675]
[1748853917551,0.04126715,2501.5,2501.3,2.39870871]
[1748853918445,7.35573389,2501.6,2501.5,2.39856086]
[1748853918805,0.40715636,2501.9,2501.5,2.39856086]
[1748853918806,8.4863231,2501.9,2501.6,2.39841968]
[1748853919006,0.04126715,2501.8,2501.6,2.39841968]
[1748853919252,7.31446674,2501.7,2501.3,4.161]
[1748853919406,0.04126715,2501.6,2501.4,2.39859894]
[1748853919608,0.80596715,2501.6,2501.1,0.7643]
[1748853919809,0.80596715,2501.6,2501.2,4.161]
[1748853920244,0.80596715,2501.6,2501.2,6.55977654]
[1748853920545,0.80596715,2501.6,2501.2,4.161]
[1748853920706,0.80596715,2501.6,2501.5,2.39856086]
[1748853922919,15.7216231,2501.9,2501.6,2.39842665]
[1748853923262,2.12776065,2501.8,2501.6,2.39842665]
[1748853923758,2.12776065,2501.8,2501.5,2.39853001]
[1748853923959,2.12776065,2501.8,2501.3,2.39868177]
[1748853924167,2.12776065,2501.8,2501.5,2.39855272]
[1748853925256,2.12776065,2501.8,2501.6,2.39844587]
[1748853925756,2.12776065,2501.8,2501.6,2.39845624]
[1748853926295,0.04126715,2501.8,2501.3,0.03997605]
[1748853926417,7.76289025,2501.9,2501.6,2.39846083]
[1748853926622,7.76289025,2501.9,2501.8,2.39827324]
[1748853927237,3.9640766,2501.9,2501.8,2.39827324]
[1748853927568,3.92280945,2501.9,2501.5,2.39852559]
[1748853927861,0.04126715,2501.8,2501.7,2.39835827]
[1748853928359,0.04126715,2501.8,2501.6,2.3984195]
[1748853928563,3.51565309,2501.7,2501.4,2.39859297]
[1748853928779,3.51565309,2501.5,2501.4,2.39859297]
[1748853929277,7.3560485,2501.7,2501.4,2.39859297]